lending/lending_fUSD_20260330
["ID","MTS","AMOUNT","RATE_DAILY","PERIOD"]
[419078671,1774841440812,-500.0,8.522e-05,2]
[419078672,1774841440821,-500.0,8.522e-05,2]
[419078673,1774841440831,-456.44869393,8.522e-05,2]
[419078674,1774841440840,-500.0,8.522e-05,2]
[419078675,1774841440850,-500.0,8.522e-05,2]
[419078676,1774841440859,-244.69861691,8.522e-05,2]
[419078677,1774841440869,-500.0,8.522e-05,2]
[419078678,1774841440879,-500.0,8.522e-05,2]
[419078679,1774841440888,-500.0,8.522e-05,2]
[419078680,1774841440898,-500.0,8.522e-05,2]
[419078681,1774841440908,-500.0,8.522e-05,2]
[419078682,1774841440918,-500.0,8.522e-05,2]
[419078683,1774841440927,-500.0,8.522e-05,2]
[419078684,1774841440937,-500.0,8.522e-05,2]
[419078685,1774841440947,-500.0,8.522e-05,2]
[419078686,1774841440956,-500.0,8.522e-05,2]
[419078687,1774841440968,-500.0,8.522e-05,2]
[419078688,1774841440978,-500.0,8.522e-05,2]
[419078689,1774841440988,-500.0,8.522e-05,2]
[419078690,1774841440998,-500.0,8.522e-05,2]
[419078691,1774841441008,-500.0,8.522e-05,2]
[419078692,1774841441018,-500.0,8.522e-05,2]
[419078693,1774841441028,-500.0,8.522e-05,2]
[419078694,1774841441038,-500.0,8.522e-05,2]
[419078695,1774841441047,-500.0,8.522e-05,2]
[419078696,1774841441057,-500.0,8.522e-05,2]
[419078697,1774841441066,-500.0,8.522e-05,2]
[419078698,1774841441075,-500.0,8.522e-05,2]
[419078699,1774841441086,-500.0,8.522e-05,2]
[419078700,1774841441095,-1710.56582121,8.572e-05,2]
[419078701,1774841441119,-445.16019756,8.572e-05,2]
[419078702,1774841441129,-5372.94722659,8.623e-05,2]
[419078703,1774841441142,-10408.18378054,8.623e-05,2]
[419078704,1774841441151,-150.0,8.623e-05,2]
[419078705,1774841441161,-165.7275915,8.623e-05,2]
[419078706,1774841441170,-500.0,8.625e-05,2]
[419078707,1774841441180,-175.59,8.625e-05,2]
[419078708,1774841441190,-1000.0,8.629e-05,2]
[419078709,1774841441200,-929.19,8.636e-05,2]
[419078710,1774841441210,-193.44,8.699e-05,2]
[419078712,1774841441220,-7780.04,8.722e-05,2]
[419078713,1774841441230,-1000.0,8.768e-05,2]
[419078714,1774841441240,-764.89,8.896e-05,2]
[419078715,1774841441250,-500.0,8.899e-05,2]
[419078716,1774841441259,-4047.58,8.936e-05,2]
[419078717,1774841441269,-2102.13,8.936e-05,2]
[419078718,1774841441278,-9999.99,8.936e-05,2]
[419078719,1774841441287,-150.99,8.936e-05,2]
[419078720,1774841441297,-150.99,8.936e-05,2]
[419078721,1774841441307,-21308.42,8.936e-05,2]
[419078722,1774841441316,-9999.99,8.936e-05,2]
[419078723,1774841441326,-951.401916,8.97e-05,2]
[419078724,1774841441335,-33445.03,9.024e-05,2]
[419078725,1774841441346,-1902.78,9.024e-05,2]
[419078726,1774841441357,-299.99,9.024e-05,2]
[419078727,1774841441367,-1540.03,9.024e-05,2]
[419078728,1774841441376,-387.0,9.037e-05,2]
[419078729,1774841441386,-943.0,9.048e-05,2]
[419078730,1774841441396,-800.0,9.053e-05,2]
[419078731,1774841441406,-186.0,9.061e-05,2]
[419078732,1774841441416,-590.0,9.148e-05,2]
[419078733,1774841441426,-1039.0,9.149e-05,2]
[419078734,1774841441436,-150.0,9.162e-05,2]
[419078735,1774841441446,-150.0,9.162e-05,2]
[419078736,1774841441455,-150.0,9.162e-05,2]
[419078737,1774841441467,-197.65781346,9.162e-05,2]
[419078738,1774841441477,-764.89,9.17e-05,2]
[419078739,1774841441487,-500.0,9.173e-05,2]
[419078740,1774841441496,-193.44,9.183e-05,2]
[419078742,1774841441506,-500.0,9.218e-05,2]
[419078744,1774841441515,-500.0,9.218e-05,2]
[419078746,1774841441524,-500.0,9.228e-05,2]
[419078748,1774841441534,-4047.58,9.294e-05,2]
[419078750,1774841441543,-175.59,9.344e-05,2]
[419078751,1774841441553,-1680.0,9.374e-05,2]
[419078752,1774841441562,-255.0,9.374e-05,2]
[419078753,1774841441572,-420.0,9.374e-05,2]
[419078754,1774841441582,-250.0,9.374e-05,2]
[419078755,1774841441591,-5000.0,9.375e-05,2]
[419078756,1774841441601,-250.0,9.375e-05,2]
[419078757,1774841441611,-193.0,9.375e-05,2]
[419078758,1774841441621,-5000.0,9.375e-05,2]
[419078759,1774841441631,-250.0,9.375e-05,2]
[419078760,1774841441640,-33003.204,9.4e-05,2]
[419078761,1774841441650,-764.89,9.444e-05,2]
[419078762,1774841441661,-500.0,9.447e-05,2]
[419078763,1774841441671,-2424.06,9.554e-05,2]
[419078764,1774841441680,-4047.58,9.651e-05,2]
[419078765,1774841441691,-151.0,9.658e-05,2]
[419078766,1774841441702,-193.44,9.666e-05,2]
[419078767,1774841441715,-9999.99,9.67e-05,2]
[419078768,1774841441726,-22173.99,9.67e-05,2]
[419078769,1774841441736,-29999.99,9.67e-05,2]
[419078770,1774841441747,-151.0,9.678e-05,2]
[419078771,1774841441758,-764.89,9.718e-05,2]
[419078772,1774841441769,-421.60378826,9.721e-05,2]
[419078773,1774841441780,-501.31097275,9.766e-05,2]
[419078774,1774841441790,-801.78,9.843e-05,2]
[419078775,1774841441801,-624.81,9.941e-05,2]
[419078776,1774841441816,-764.94660297,9.992e-05,2]
[419078777,1774841441826,-150.0,0.0001,2]
[419078778,1774841441836,-504.39464035,0.0001,2]
[419078779,1774841441846,-200.0,0.0001,2]
[419078780,1774841441856,-500.0,0.0001,2]
[419078781,1774841441866,-500.0,0.0001,2]
[419078782,1774841441876,-151.0,0.0001,2]
[419078783,1774841441886,-500.0,0.0001,2]
[419078784,1774841441897,-151.0,0.0001,2]
[419078785,1774841441907,-151.0,0.0001,2]
[419078786,1774841441917,-500.0,0.0001,2]
[419078787,1774841441927,-500.0,0.0001,2]
[419078788,1774841441937,-151.0,0.0001,2]
[419078789,1774841441947,-500.0,0.0001,2]
[419078790,1774841441957,-151.0,0.0001,2]
[419078791,1774841441972,-500.0,0.0001,2]
[419078792,1774841441982,-151.0,0.0001,2]
[419078793,1774841441992,-151.0,0.0001,2]
[419078794,1774841442002,-151.0,0.0001,2]
[419078795,1774841442012,-500.0,0.0001,2]
[419078796,1774841442022,-151.0,0.0001,2]
[419078797,1774841442032,-151.0,0.0001,2]
[419078798,1774841442042,-151.0,0.0001,2]
[419078799,1774841442052,-383.83703057,0.0001,2]
[419078800,1774841442061,-500.0,0.0001,2]
[419078801,1774841442072,-151.0,0.0001,2]
[419078802,1774841442083,-151.0,0.0001,2]
[419078803,1774841442092,-500.0,0.0001,2]
[419078804,1774841442101,-151.0,0.0001,2]
[419078805,1774841442111,-151.0,0.0001,2]
[419078806,1774841442120,-500.0,0.0001,2]
[419078807,1774841442129,-151.0,0.0001,2]
[419078808,1774841442139,-151.0,0.0001,2]
[419078809,1774841442149,-500.0,0.0001,2]
[419078810,1774841442159,-151.0,0.0001,2]
[419078811,1774841442168,-151.0,0.0001,2]
[419078812,1774841442179,-500.0,0.0001,2]
[419078813,1774841442188,-151.0,0.0001,2]
[419078814,1774841442199,-151.0,0.0001,2]
[419078815,1774841442209,-500.0,0.0001,2]
[419078816,1774841442224,-151.0,0.0001,2]
[419078817,1774841442234,-151.0,0.0001,2]
[419078818,1774841442244,-500.0,0.0001,2]
[419078819,1774841442255,-151.0,0.0001,2]
[419078820,1774841442265,-500.0,0.0001,2]
[419078821,1774841442275,-151.0,0.0001,2]
[419078822,1774841442285,-151.0,0.0001,2]
[419078823,1774841442294,-500.0,0.0001,2]
[419078824,1774841442303,-151.0,0.0001,2]
[419078825,1774841442312,-151.0,0.0001,2]
[419078826,1774841442322,-500.0,0.0001,2]
[419078827,1774841442331,-151.0,0.0001,2]
[419078828,1774841442346,-500.0,0.0001,2]
[419078829,1774841442356,-151.0,0.0001,2]
[419078830,1774841442366,-500.0,0.0001,2]
[419078831,1774841442377,-151.0,0.0001,2]
[419078832,1774841442386,-500.0,0.0001,2]
[419078833,1774841442396,-500.0,0.0001,2]
[419078834,1774841442406,-151.0,0.0001,2]
[419078835,1774841442416,-1386.78395259,0.0001,2]
[419078836,1774841442426,-151.0,0.0001,2]
[419078837,1774841442436,-150.0,0.0001,2]
[419078838,1774841442447,-150.0,0.0001,2]
[419078847,1774841442999,-152.59354707,0.0001,2]
[419078848,1774841443009,-218.64346577,0.0001,2]
[419078849,1774841443019,-4047.58,0.00010008,2]
[419078851,1774841443030,-175.59,0.00010062,2]
[419078853,1774841443040,-193.44,0.00010149,2]
[419078854,1774841443051,-318.16,0.00010159,2]
[419078855,1774841443063,-433.0,0.00010311,2]
[419078856,1774841443074,-447.0,0.00010311,2]
[419078857,1774841443084,-2351.0,0.00010311,2]
[419078858,1774841443095,-4047.58,0.00010366,2]
[419078859,1774841443105,-456.0,0.00010438,2]
[419078860,1774841443115,-165.44762194,0.00010459,2]
[419078861,1774841443125,-200.0,0.00010548,2]
[419078862,1774841443135,-1386.7839526,0.00010548,2]
[419078863,1774841443146,-152.82264291,0.00010548,2]
[419078864,1774841443156,-193.44,0.00010633,2]
[419078865,1774841443167,-4047.58,0.00010723,2]
[419078866,1774841443178,-500.0,0.0001074,2]
[419078867,1774841443188,-175.59,0.00010781,2]
[419078869,1774841443198,-3747.69214973,0.000109,2]
[419078870,1774841443208,-3747.69214969,0.000109,2]
[419078871,1774841443220,-3747.69214969,0.000109,2]
[419078872,1774841443230,-500.0,0.00010959,2]
[419078873,1774841443240,-166.66,0.00010959,2]
[419078874,1774841443250,-150.0,0.00010959,2]
[419078877,1774841443259,-1070.657225,0.00010959,2]
[419078878,1774841443269,-1070.657225,0.00010959,2]
[419078879,1774841443279,-1070.657225,0.00010959,2]
[419078880,1774841443290,-1070.657225,0.00010959,2]
[419078881,1774841443299,-168.3696283,0.00010959,2]
[419078882,1774841443310,-5531.65655379,0.00011,2]
[419078883,1774841443319,-151.0,0.00011068,2]
[419078884,1774841443330,-166.66,0.00011068,2]
[419078885,1774841443339,-4047.58,0.00011081,2]
[419078886,1774841443349,-151.0,0.00011092,2]
[419078887,1774841443370,-151.0,0.00011092,2]
[419078888,1774841443382,-151.0,0.00011092,2]
[419078889,1774841443393,-250.860871,0.00011092,2]
[419078890,1774841443403,-200.0,0.00011096,2]
[419078891,1774841443413,-21540.46025519,0.00011099,2]
[419078892,1774841443424,-21540.46025516,0.00011099,2]
[419078893,1774841443434,-21540.46025516,0.00011099,2]
[419078894,1774841443444,-21540.46025516,0.00011099,2]
[419078895,1774841443455,-13725.13086486,0.00011099,2]
[419078896,1774841443465,-13725.13086481,0.00011099,2]
[419078897,1774841443475,-13725.13086481,0.00011099,2]
[419078898,1774841443486,-13725.13086481,0.00011099,2]
[419078899,1774841443498,-151.0,0.00011099,2]
[419078900,1774841443508,-151.0,0.00011099,2]
[419078901,1774841443518,-151.0,0.00011099,2]
[419078902,1774841443529,-151.0,0.00011099,2]
[419078903,1774841443539,-151.0,0.00011099,2]
[419078904,1774841443550,-151.0,0.00011099,2]
[419078905,1774841443560,-151.0,0.00011099,2]
[419078906,1774841443571,-151.0,0.00011099,2]
[419078907,1774841443582,-868.417081,0.00011099,2]
[419078908,1774841443593,-868.417081,0.00011099,2]
[419078909,1774841443603,-868.417081,0.00011099,2]
[419078910,1774841443614,-868.417081,0.00011099,2]
[419078911,1774841443624,-451.707835,0.00011099,2]
[419078912,1774841443635,-451.707835,0.00011099,2]
[419078913,1774841443645,-451.707835,0.00011099,2]
[419078914,1774841443654,-451.707835,0.00011099,2]
[419078915,1774841443665,-193.44,0.00011116,2]
[419078916,1774841443676,-166.66,0.00011178,2]
[419078917,1774841443687,-250.0,0.00011261,2]
[419078918,1774841443697,-166.66,0.00011288,2]
[419078919,1774841443708,-736.0,0.00011342,2]
[419078920,1774841443719,-3292.0,0.00011342,2]
[419078921,1774841443730,-166.66,0.00011397,2]
[419078922,1774841443740,-4047.58,0.00011438,2]
[419078923,1774841443751,-196.8478,0.000115,7]
[419078924,1774841443761,-3142.51,0.00011507,2]
[419078925,1774841443772,-166.66,0.00011507,2]
[419078926,1774841443782,-151.0,0.00011507,2]
[419078927,1774841443793,-151.0,0.00011507,2]
[419078928,1774841443803,-151.0,0.00011507,2]
[419078929,1774841443814,-151.0,0.00011507,2]
[419078930,1774841443824,-151.0,0.00011507,2]
[419078931,1774841443835,-151.0,0.00011507,2]
[419078933,1774841443845,-151.0,0.00011507,2]
[419078935,1774841443855,-151.0,0.00011507,2]
[419078937,1774841443866,-193.44,0.00011599,2]
[419078939,1774841443876,-200.0,0.00011644,2]
[419078940,1774841443887,-3747.69214969,0.00011655,2]
[419078942,1774841443898,-4047.58,0.00011796,2]
[419078944,1774841443908,-13725.13086481,0.00011802,2]
[419078946,1774841443918,-21540.46025516,0.00011802,2]
[419078948,1774841443928,-193.44,0.00012083,2]
[419078950,1774841443938,-500.0,0.0001211,2]
[419078953,1774841443948,-4047.58,0.00012153,2]
[419078955,1774841443960,-200.0,0.00012192,2]
[419078957,1774841443971,-504.39464033,0.00012212,2]
[419078958,1774841443981,-5687.342,0.00012369,2]
[419078960,1774841443992,-461.773564,0.00012369,2]
[419078962,1774841444002,-1792.962876,0.00012369,2]
[419078964,1774841444012,-263.870609,0.00012369,2]
[419078966,1774841444022,-764.975784,0.00012369,2]
[419078968,1774841444032,-10053.958742,0.00012369,2]
[419078970,1774841444043,-1252.0,0.00012476,2]
[419078972,1774841444054,-4609.0,0.00012477,2]
[419078974,1774841444063,-4047.58,0.00012511,2]
[419078976,1774841444073,-193.44,0.00012566,2]
[419078978,1774841444083,-13725.13086481,0.00012621,2]
[419078980,1774841444094,-21540.46025516,0.00012621,2]
[419078982,1774841444103,-3747.69214969,0.00012717,2]
[419078984,1774841444113,-151.88410035,0.00012739,2]
[419078986,1774841444124,-200.0,0.0001274,2]
[419078988,1774841444135,-329.838262,0.00012749,2]
[419078990,1774841444144,-218.56451,0.00012749,2]
[419078992,1774841444154,-4047.58,0.00012868,2]
[419078994,1774841444164,-500.0,0.00012877,2]
[419078997,1774841444174,-426.10763238,0.00012888,2]
[419079000,1774841444183,-800.0,0.000129,4]
[419079003,1774841444193,-500.0,0.00012959,2]
[419079004,1774841444203,-258.327,0.00013,12]
[419079005,1774841444218,-578.20924308,0.00013009,2]
[419079006,1774841444228,-500.0,0.00013009,2]
[419079007,1774841444239,-500.0,0.00013009,2]
[419079008,1774841444250,-151.0,0.00013009,2]
[419079009,1774841444260,-1428.38747117,0.00013009,2]
[419079010,1774841444271,-9552.16786547,0.00013009,2]
[419079011,1774841444281,-209.40437684,0.00013009,2]
[419079012,1774841444291,-735.16880261,0.00013009,2]
[419079013,1774841444301,-500.0,0.00013009,2]
[419079014,1774841444312,-500.0,0.00013009,2]
[419079015,1774841444322,-500.0,0.00013009,2]
[419079016,1774841444333,-500.0,0.00013009,2]
[419079017,1774841444343,-500.0,0.00013009,2]
[419079018,1774841444353,-500.0,0.00013009,2]
[419079019,1774841444363,-500.0,0.00013009,2]
[419079020,1774841444373,-500.0,0.00013009,2]
[419079021,1774841444383,-500.0,0.00013009,2]
[419079022,1774841444394,-500.0,0.00013009,2]
[419079023,1774841444404,-209.40437684,0.00013009,2]
[419079024,1774841444415,-500.0,0.00013009,2]
[419079025,1774841444426,-500.0,0.00013009,2]
[419079026,1774841444436,-500.0,0.00013009,2]
[419079027,1774841444446,-500.0,0.00013009,2]
[419079028,1774841444456,-500.0,0.00013009,2]
[419079029,1774841444467,-500.0,0.00013009,2]
[419079030,1774841444478,-500.0,0.00013009,2]
[419079031,1774841444488,-500.0,0.00013009,2]
[419079032,1774841444499,-500.0,0.00013009,2]
[419079033,1774841444509,-500.0,0.00013009,2]
[419079034,1774841444520,-500.0,0.00013009,2]
[419079035,1774841444530,-500.0,0.00013009,2]
[419079036,1774841444541,-500.0,0.00013009,2]
[419079037,1774841444551,-500.0,0.00013009,2]
[419079038,1774841444561,-151.0,0.00013009,2]
[419079039,1774841444571,-500.0,0.00013009,2]
[419079040,1774841444583,-500.0,0.00013009,2]
[419079041,1774841444593,-500.0,0.00013009,2]
[419079042,1774841444603,-500.0,0.00013009,2]
[419079043,1774841444613,-500.0,0.00013009,2]
[419079044,1774841444623,-500.0,0.00013009,2]
[419079045,1774841444634,-500.0,0.00013009,2]
[419079046,1774841444646,-500.0,0.00013009,2]
[419079047,1774841444656,-693.3919763,0.00013009,2]
[419079048,1774841444666,-250.0,0.00013009,2]
[419079049,1774841444679,-250.0,0.00013009,2]
[419079050,1774841444689,-174.61919141,0.00013009,2]
[419079051,1774841444700,-279.9045709,0.00013009,2]
[419079052,1774841444711,-250.0,0.00013009,2]
[419079053,1774841444721,-250.0,0.00013009,2]
[419079054,1774841444731,-250.0,0.00013009,2]
[419079055,1774841444741,-250.0,0.00013009,2]
[419079056,1774841444751,-250.0,0.00013009,2]
[419079057,1774841444761,-250.0,0.00013009,2]
[419079058,1774841444771,-250.0,0.00013009,2]
[419079059,1774841444781,-250.0,0.00013009,2]
[419079060,1774841444791,-200.0,0.00013009,2]
[419079061,1774841444801,-250.0,0.00013009,2]
[419079062,1774841444811,-262.90206542,0.00013009,2]
[419079063,1774841444823,-209.40437685,0.00013009,2]
[419079064,1774841444834,-500.0,0.00013009,2]
[419079065,1774841444845,-500.0,0.00013009,2]
[419079066,1774841444856,-500.0,0.00013009,2]
[419079067,1774841444867,-500.0,0.00013009,2]
[419079068,1774841444879,-500.0,0.00013009,2]
[419079069,1774841444889,-151.0,0.0001301,2]
[419079070,1774841444898,-1070.657225,0.0001301,2]
[419079071,1774841444908,-1070.657225,0.0001301,2]
[419079072,1774841444918,-1070.657225,0.0001301,2]
[419079073,1774841444927,-1070.657225,0.0001301,2]
[419079074,1774841444937,-193.44,0.00013049,2]
[419079075,1774841444946,-500.0,0.00013064,2]
[419079076,1774841444956,-9905.5980765,0.00013064,2]
[419079077,1774841444967,-151.0,0.00013064,2]
[419079078,1774841444976,-272.62944185,0.00013064,2]
[419079079,1774841444986,-500.0,0.00013119,2]
[419079080,1774841444996,-10272.10520533,0.00013119,2]
[419079081,1774841445006,-151.0,0.00013119,2]
[419079082,1774841445015,-282.71673119,0.00013119,2]
[419079083,1774841445025,-318.16,0.00013131,2]
[419079084,1774841445035,-8240.71,0.00013141,2]
[419079085,1774841445044,-200.0,0.00013151,2]
[419079086,1774841445054,-200.0,0.00013151,2]
[419079087,1774841445068,-200.0,0.00013151,2]
[419079088,1774841445078,-200.0,0.00013151,2]
[419079089,1774841445089,-200.0,0.00013151,2]
[419079090,1774841445099,-200.0,0.00013151,2]
[419079091,1774841445109,-200.0,0.00013151,2]
[419079092,1774841445119,-200.0,0.00013151,2]
[419079093,1774841445128,-200.0,0.00013151,2]
[419079094,1774841445138,-200.0,0.00013151,2]
[419079095,1774841445148,-200.0,0.00013151,2]
[419079096,1774841445159,-200.0,0.00013151,2]
[419079097,1774841445169,-200.0,0.00013151,2]
[419079098,1774841445178,-200.0,0.00013151,2]
[419079099,1774841445188,-200.0,0.00013151,2]
[419079100,1774841445199,-200.0,0.00013151,2]
[419079101,1774841445208,-200.0,0.00013151,2]
[419079102,1774841445218,-200.0,0.00013151,2]
[419079103,1774841445228,-200.0,0.00013151,2]
[419079104,1774841445238,-200.0,0.00013151,2]
[419079105,1774841445249,-200.0,0.00013151,2]
[419079106,1774841445259,-200.0,0.00013151,2]
[419079107,1774841445269,-200.0,0.00013151,2]
[419079108,1774841445279,-200.0,0.00013151,2]
[419079109,1774841445289,-200.0,0.00013151,2]
[419079110,1774841445299,-200.0,0.00013151,2]
[419079111,1774841445310,-200.0,0.00013151,2]
[419079112,1774841445320,-200.0,0.00013151,2]
[419079113,1774841445331,-200.0,0.00013151,2]
[419079114,1774841445341,-200.0,0.00013151,2]
[419079115,1774841445351,-200.0,0.00013151,2]
[419079116,1774841445362,-200.0,0.00013151,2]
[419079117,1774841445373,-200.0,0.00013151,2]
[419079118,1774841445383,-200.0,0.00013151,2]
[419079119,1774841445393,-200.0,0.00013151,2]
[419079120,1774841445404,-200.0,0.00013151,2]
[419079121,1774841445414,-200.0,0.00013151,2]
[419079122,1774841445425,-200.0,0.00013151,2]
[419079123,1774841445437,-243.992822,0.00013151,2]
[419079124,1774841445449,-500.0,0.00013174,2]
[419079125,1774841445459,-10652.17309792,0.00013174,2]
[419079126,1774841445469,-151.0,0.00013174,2]
[419079127,1774841445479,-293.17725025,0.00013174,2]
[419079128,1774841445489,-4047.58,0.00013226,2]
[419079129,1774841445500,-240.34897015,0.00013229,2]
[419079130,1774841445510,-500.0,0.00013229,2]
[419079131,1774841445520,-151.0,0.00013229,2]
[419079132,1774841445530,-304.02480851,0.00013229,2]
[419079133,1774841445539,-500.0,0.00013284,2]
[419079134,1774841445550,-151.0,0.00013284,2]
[419079135,1774841445561,-315.27372642,0.00013284,2]
[419079136,1774841445571,-200.0,0.00013288,2]
[419079137,1774841445581,-160.0,0.00013306,2]
[419079138,1774841445591,-160.0,0.00013306,2]
[419079139,1774841445601,-500.0,0.00013339,2]
[419079140,1774841445611,-151.0,0.00013339,2]
[419079141,1774841445621,-326.9388543,0.00013339,2]
[419079142,1774841445631,-500.0,0.00013394,2]
[419079143,1774841445640,-151.0,0.00013394,2]
[419079144,1774841445650,-339.03559191,0.00013394,2]
[419079145,1774841445659,-151.0,0.00013441,2]
[419079146,1774841445670,-151.0,0.00013441,2]
[419079147,1774841445680,-151.0,0.00013441,2]
[419079148,1774841445692,-13725.13086481,0.00013441,2]
[419079149,1774841445703,-21540.46025516,0.00013441,2]
[419079150,1774841445713,-500.0,0.00013449,2]
[419079151,1774841445725,-151.0,0.00013449,2]
[419079152,1774841445735,-500.0,0.00013504,2]
[419079153,1774841445744,-151.0,0.00013504,2]
[419079154,1774841445755,-151.0,0.00013557,2]
[419079155,1774841445764,-1481.23780761,0.00013557,2]
[419079156,1774841445775,-217.15233878,0.00013557,2]
[419079157,1774841445784,-257.97768136,0.00013557,2]
[419079158,1774841445794,-181.08010149,0.00013557,2]
[419079159,1774841445804,-292.15408743,0.00013557,2]
[419079160,1774841445814,-200.0,0.00013557,2]
[419079161,1774841445824,-500.0,0.00013559,2]
[419079162,1774841445834,-151.0,0.00013559,2]
[419079163,1774841445845,-151.0,0.0001358,2]
[419079164,1774841445855,-4047.58,0.00013583,2]
[419079165,1774841445865,-10000.0,0.00013598,2]
[419079166,1774841445875,-7668.98088338,0.00013599,2]
[419079167,1774841445886,-308.47,0.00013692,2]
[419079168,1774841445897,-564.47601303,0.00013698,2]
[419079169,1774841445908,-490.0,0.00013698,2]
[419079171,1774841445918,-500.0,0.00013698,2]
[419079173,1774841445928,-545.76447195,0.00013698,2]
[419079176,1774841445938,-490.0,0.00013698,2]
[419079178,1774841445948,-586.09491028,0.00013698,2]
[419079180,1774841445958,-435.19266158,0.00013698,2]
[419079182,1774841445967,-500.0,0.00013698,2]
[419079184,1774841445977,-500.0,0.00013698,2]
[419079186,1774841445988,-500.0,0.00013698,2]
[419079188,1774841445998,-150.0,0.00013699,2]
[419079190,1774841446009,-150.0,0.00013699,2]
[419079192,1774841446018,-150.0,0.00013699,2]
[419079194,1774841446028,-158.195844,0.00013699,2]
[419079196,1774841446038,-158.195844,0.00013699,2]
[419079198,1774841446048,-158.195844,0.00013699,2]
[419079200,1774841446058,-158.195844,0.00013699,2]
[419079202,1774841446067,-571.029725,0.00013699,2]
[419079204,1774841446078,-571.029725,0.00013699,2]
[419079205,1774841446088,-571.029725,0.00013699,2]
[419079206,1774841446100,-571.029725,0.00013699,2]
[419079207,1774841446109,-571.029725,0.00013699,2]
[419079208,1774841446119,-571.029725,0.00013699,2]
[419079209,1774841446129,-571.029725,0.00013699,2]
[419079210,1774841446140,-571.029725,0.00013699,2]
[419079211,1774841446150,-151.0,0.00013699,2]
[419079212,1774841446160,-151.0,0.00013699,2]
[419079213,1774841446169,-151.0,0.00013699,2]
[419079214,1774841446180,-151.0,0.00013699,2]
[419079215,1774841446190,-2744.83,0.00013699,2]
[419079216,1774841446199,-221.78565646,0.00013699,2]
[419079217,1774841446209,-356.03578514,0.00013699,2]
[419079218,1774841446219,-25.46503363,0.00013699,2]
[419079229,1774841446713,-0.4177157,0.00013699,2]
[419079246,1774841446868,-500.0,8.522e-05,2]
[419079248,1774841446879,-474.11725067,0.00013699,2]
[419079250,1774841446889,-500.0,0.00013699,2]
[419079252,1774841446898,-500.0,0.00013699,2]
[419079254,1774841446908,-500.0,0.00013699,2]
[419079256,1774841446917,-151.0,0.00013699,2]
[419079258,1774841446927,-151.0,0.00013699,2]
[419079260,1774841446936,-151.0,0.00013699,2]
[419079262,1774841446946,-6453.0,0.00013724,2]
[419079264,1774841446956,-2129.0,0.00013729,2]
[419079266,1774841446966,-3747.69214969,0.00013778,2]
[419079268,1774841446975,-204.56789249,0.00013784,2]
[419079270,1774841446985,-472.91804059,0.00013873,2]
[419079272,1774841446994,-150.0,0.00013973,2]
[419079274,1774841447004,-150.0,0.00013973,2]
[419079276,1774841447014,-150.0,0.00013973,2]
[419079278,1774841447023,-205.170177,0.00014,2]
[419079280,1774841447032,-151.0,0.00014105,2]
[419079282,1774841447042,-1536.04360649,0.00014105,2]
[419079284,1774841447051,-225.18697532,0.00014105,2]
[419079286,1774841447061,-187.78006525,0.00014105,2]
[419079288,1774841447070,-200.0,0.00014105,2]
[419079290,1774841447079,-2468.0,0.00014193,2]
[419079292,1774841447089,-1500.0,0.00014241,2]
[419079294,1774841447099,-150.0,0.00014247,2]